fUSD/lending_fUSD_20260314
["ID","MTS","AMOUNT","RATE_DAILY","PERIOD"]
[408368311,1773505845887,-500.0,0.00016803,2]
[408368312,1773505845897,-500.0,0.00016804,2]
[408368313,1773505845906,-200.0,0.00016804,2]
[408368314,1773505845916,-150.0,0.00016804,2]
[408368315,1773505845926,-150.0,0.00016804,2]
[408368316,1773505845934,-150.0,0.00016804,2]
[408368317,1773505845944,-631.48481368,0.00016804,2]
[408368318,1773505845954,-200.0,0.00016804,2]
[408368319,1773505845963,-500.0,0.00016804,2]
[408368320,1773505845972,-150.0,0.00016804,2]
[408368321,1773505845982,-564.0,0.00016804,2]
[408368322,1773505845991,-500.0,0.00016804,2]
[408368323,1773505846001,-500.0,0.00016804,2]
[408368324,1773505846010,-406.55650963,0.00016804,2]
[408368325,1773505846019,-202.7141884,0.00016804,2]
[408368326,1773505846029,-500.0,0.00016804,2]
[408368327,1773505846038,-500.0,0.00016804,2]
[408368328,1773505846047,-150.0,0.00016804,2]
[408368329,1773505846056,-150.0,0.00016804,2]
[408368330,1773505846065,-212.24562863,0.00016804,2]
[408368331,1773505846075,-658.0,0.00016804,2]
[408368332,1773505846085,-500.0,0.00016804,2]
[408368333,1773505846094,-500.0,0.00016804,2]
[408368335,1773505846104,-316.0,0.00016831,2]
[408368337,1773505846116,-168.0,0.00016851,2]
[408368339,1773505846125,-151.0,0.00016858,2]
[408368341,1773505846134,-41.3657334,0.00016858,2]
[408368343,1773505846146,-109.6342666,0.00016858,2]
[408368345,1773505846155,-151.0,0.00016858,2]
[408368346,1773505846164,-151.0,0.00016858,2]
[408368347,1773505846173,-200.0,0.00016858,2]
[408368348,1773505846183,-200.0,0.00016858,2]
[408368349,1773505846192,-596.68097798,0.00016858,2]
[408368350,1773505846201,-150.0,0.00016858,2]
[408368351,1773505846210,-273.86451249,0.00016858,2]
[408368352,1773505846219,-202.64960457,0.00016858,2]
[408368353,1773505846228,-500.0,0.00016858,2]
[408368354,1773505846237,-252.66837309,0.00016858,2]
[408368355,1773505846246,-564.0,0.00016858,2]
[408368356,1773505846254,-500.0,0.00016858,2]
[408368357,1773505846264,-500.0,0.00016858,2]
[408368358,1773505846272,-500.0,0.00016858,2]
[408368359,1773505846282,-500.0,0.00016858,2]
[408368360,1773505846291,-252.2735785,0.00016858,2]
[408368361,1773505846299,-150.0,0.00016858,2]
[408368362,1773505846308,-442.96133435,0.00016858,2]
[408368363,1773505846319,-215.03866565,0.00016858,2]
[408368364,1773505846329,-500.0,0.00016858,2]
[408368365,1773505846339,-300.0,0.00016858,2]
[408368366,1773505846348,-316.0,0.00016866,2]
[408368367,1773505846358,-224.26972842,0.00016868,2]
[408368368,1773505846367,-500.0,0.00016868,2]
[408368369,1773505846377,-500.0,0.00016868,2]
[408368370,1773505846386,-500.0,0.00016868,2]
[408368371,1773505846398,-500.0,0.00016868,2]
[408368372,1773505846409,-500.0,0.00016868,2]
[408368373,1773505846419,-500.0,0.00016868,2]
[408368374,1773505846428,-500.0,0.00016868,2]
[408368375,1773505846438,-500.0,0.00016868,2]
[408368376,1773505846448,-500.0,0.00016868,2]
[408368377,1773505846457,-500.0,0.00016868,2]
[408368378,1773505846467,-500.0,0.00016868,2]
[408368379,1773505846476,-500.0,0.00016868,2]
[408368380,1773505846485,-469.69160593,0.00016868,2]
[408368381,1773505846497,-30.30839407,0.00016868,2]
[408368382,1773505846507,-500.0,0.00016868,2]
[408368383,1773505846516,-500.0,0.0001687,2]
[408368385,1773505846525,-500.0,0.0001687,2]
[408368386,1773505846535,-238.25371037,0.0001687,2]
[408368387,1773505846544,-356.61379371,0.0001687,2]
[408368388,1773505846554,-500.0,0.0001687,2]
[408368389,1773505846563,-500.0,0.0001687,2]
[408368390,1773505846572,-500.0,0.0001687,2]
[408368391,1773505846581,-615.51905766,0.0001687,2]
[408368392,1773505846591,-500.0,0.0001687,2]
[408368393,1773505846600,-500.0,0.0001687,2]
[408368394,1773505846610,-500.0,0.0001687,2]
[408368395,1773505846620,-1.50504425,0.0001687,2]
[408368396,1773505846631,-196.52568482,0.0001687,2]
[408368397,1773505846642,-500.0,0.0001687,2]
[408368398,1773505846651,-500.0,0.0001687,2]
[408368399,1773505846661,-500.0,0.00016871,2]
[408368400,1773505846670,-483.47431518,0.00016871,2]
[408368401,1773505846712,-16.52568482,0.00016871,2]
[408368402,1773505846721,-500.0,0.00016871,2]
[408368403,1773505846731,-500.0,0.00016871,2]
[408368404,1773505846742,-500.0,0.00016871,2]
[408368405,1773505846750,-483.47431518,0.00016871,2]
[408368407,1773505863751,604.0,0.00013983,2]
[408368410,1773505942269,356.63,0.00013983,2]
[408368446,1773507031827,-166.66,0.00014851,2]
[408368447,1773507031838,-600.0,0.00014851,2]
[408368448,1773507031848,-250.0,0.00014851,2]
[408368449,1773507031862,-273.0,0.00014851,2]
[408368450,1773507031875,-150.0,0.00014903,2]
[408368451,1773507031884,-103.91054066,0.00015044,2]
[408368453,1773507032104,-1513.40642355,0.00015044,2]
[408368454,1773507032115,-1200.0,0.00015135,2]
[408368455,1773507032125,-300.0,0.00015135,2]
[408368456,1773507032135,-1986.59357645,0.00015136,2]
[408368457,1773507032147,-8013.40642355,0.00015136,2]
[408368458,1773507032158,-166.66,0.00015163,2]
[408368459,1773507032169,-500.0,0.00015408,2]
[408368460,1773507032179,-14835.28,0.00015464,2]
[408368461,1773507032189,-166.66,0.00015476,2]
[408368462,1773507032200,-166.66,0.00015507,2]
[408368463,1773507032210,-167.89,0.0001551,2]
[408368464,1773507032219,-167.89,0.0001551,2]
[408368465,1773507032229,-167.89,0.0001551,2]
[408368466,1773507032239,-167.89,0.0001551,2]
[408368467,1773507032250,-455.39684157,0.00015685,2]
[408368468,1773507032260,-163.0,0.00015685,2]
[408368469,1773507032271,-1109.0,0.00015738,2]
[408368470,1773507032282,-156.0,0.00015738,2]
[408368471,1773507032291,-500.0,0.00015753,2]
[408368472,1773507032301,-300.0,0.00015788,2]
[408368473,1773507032312,-166.66,0.00015789,2]
[408368474,1773507032321,-3446.02,0.00015789,2]
[408368475,1773507032331,-150.99,0.00015789,2]
[408368476,1773507032340,-2112.5,0.00015789,2]
[408368477,1773507032350,-150.99,0.00015789,2]
[408368478,1773507032359,-299.99,0.00015789,2]
[408368479,1773507032371,-9999.99,0.00015789,2]
[408368480,1773507032382,-3886.07,0.00015789,2]
[408368481,1773507032391,-166.0,0.00015834,2]
[408368482,1773507032401,-384.0,0.00015865,2]
[408368483,1773507032412,-1656.0,0.00015878,2]
[408368484,1773507032422,-158.09,0.00015882,2]
[408368485,1773507032432,-1852.42,0.00015892,2]
[408368486,1773507032442,-153.0,0.00015897,2]
[408368487,1773507032452,-1865.6,0.00015898,2]
[408368488,1773507032462,-868.0,0.00015909,2]
[408368489,1773507032471,-390.0,0.00015941,2]
[408368490,1773507032481,-6205.28563472,0.00015999,2]
[408368491,1773507032493,-13359.16829636,0.00015999,2]
[408368492,1773507032503,-212.0,0.00016,2]
[408368493,1773507032513,-166.66,0.00016019,2]
[408368494,1773507032524,-500.0,0.00016073,2]
[408368495,1773507032533,-500.0,0.00016073,2]
[408368496,1773507032543,-500.26320598,0.00016073,2]
[408368497,1773507032553,-500.0,0.00016073,2]
[408368498,1773507032563,-500.64031486,0.00016073,2]
[408368499,1773507032573,-468.05377519,0.00016073,2]
[408368500,1773507032582,-229.83813791,0.00016073,2]
[408368501,1773507032600,-401.1,0.00016077,2]
[408368502,1773507032612,-401.1,0.00016077,2]
[408368503,1773507032622,-401.1,0.00016077,2]
[408368504,1773507032632,-401.1,0.00016077,2]
[408368505,1773507032643,-401.1,0.00016077,2]
[408368506,1773507032655,-500.0,0.00016086,2]
[408368507,1773507032665,-500.0,0.00016086,2]
[408368508,1773507032674,-722.62013483,0.00016086,2]
[408368509,1773507032684,-722.62013483,0.00016086,2]
[408368510,1773507032694,-272.29447524,0.00016086,2]
[408368511,1773507032705,-500.0,0.00016086,2]
[408368512,1773507032715,-722.62013483,0.00016086,2]
[408368513,1773507032725,-500.0,0.00016086,2]
[408368514,1773507032735,-229.27233638,0.00016086,2]
[408368515,1773507032745,-722.62013483,0.00016086,2]
[408368516,1773507032756,-722.62013483,0.00016086,2]
[408368517,1773507032766,-500.0,0.00016086,2]
[408368518,1773507032776,-499.97035783,0.00016086,2]
[408368519,1773507032786,-722.62013483,0.00016086,2]
[408368520,1773507032795,-722.62013483,0.00016086,2]
[408368521,1773507032805,-452.28532462,0.00016086,2]
[408368522,1773507032814,-722.62013483,0.00016086,2]
[408368523,1773507032824,-722.62013483,0.00016086,2]
[408368524,1773507032834,-500.0,0.00016086,2]
[408368525,1773507032844,-722.62013483,0.00016086,2]
[408368526,1773507032854,-722.62013483,0.00016086,2]
[408368527,1773507032866,-722.62013483,0.00016086,2]
[408368528,1773507032878,-722.62013483,0.00016086,2]
[408368529,1773507032888,-722.62013483,0.00016086,2]
[408368530,1773507032898,-722.62013483,0.00016086,2]
[408368531,1773507032908,-722.62013483,0.00016086,2]
[408368532,1773507032919,-722.62013483,0.00016086,2]
[408368533,1773507032930,-722.62013483,0.00016086,2]
[408368534,1773507032942,-722.62013483,0.00016086,2]
[408368535,1773507032953,-722.62013483,0.00016086,2]
[408368536,1773507032963,-722.62013483,0.00016086,2]
[408368537,1773507032976,-722.62013483,0.00016086,2]
[408368538,1773507032986,-722.62013483,0.00016086,2]
[408368539,1773507032997,-722.62013483,0.00016086,2]
[408368540,1773507033006,-722.62013483,0.00016086,2]
[408368541,1773507033017,-722.62013483,0.00016086,2]
[408368542,1773507033026,-722.62013483,0.00016086,2]
[408368543,1773507033037,-722.62013483,0.00016086,2]
[408368544,1773507033047,-722.62013483,0.00016086,2]
[408368545,1773507033057,-722.62013483,0.00016086,2]
[408368546,1773507033067,-722.62013483,0.00016086,2]
[408368547,1773507033078,-722.62013483,0.00016086,2]
[408368548,1773507033088,-722.62013483,0.00016086,2]
[408368549,1773507033099,-722.62013483,0.00016086,2]
[408368550,1773507033109,-722.62013483,0.00016086,2]
[408368551,1773507033120,-722.62013483,0.00016086,2]
[408368552,1773507033131,-722.62013483,0.00016086,2]
[408368553,1773507033141,-722.62013483,0.00016086,2]
[408368554,1773507033153,-722.62013483,0.00016086,2]
[408368555,1773507033163,-722.62013483,0.00016086,2]
[408368556,1773507033172,-722.62013483,0.00016086,2]
[408368557,1773507033185,-541.64801581,0.00016086,2]
[408368558,1773507033201,-180.97211902,0.00016086,2]
[408368559,1773507033211,-722.62013483,0.00016086,2]
[408368560,1773507033221,-722.62013483,0.00016086,2]
[408368561,1773507033231,-722.62013483,0.00016086,2]
[408368562,1773507033241,-722.62013483,0.00016086,2]
[408368563,1773507033251,-722.62013483,0.00016086,2]
[408368564,1773507033260,-722.62013483,0.00016086,2]
[408368565,1773507033270,-722.62013483,0.00016086,2]
[408368566,1773507033280,-722.62013483,0.00016086,2]
[408368567,1773507033289,-722.62013483,0.00016086,2]
[408368568,1773507033299,-722.62013483,0.00016086,2]
[408368569,1773507033308,-722.62013483,0.00016086,2]
[408368570,1773507033318,-722.62013483,0.00016086,2]
[408368571,1773507033327,-722.62013483,0.00016086,2]
[408368572,1773507033337,-722.62013483,0.00016086,2]
[408368573,1773507033347,-722.62013483,0.00016086,2]
[408368574,1773507033357,-722.62013483,0.00016086,2]
[408368575,1773507033367,-722.62013483,0.00016086,2]
[408368576,1773507033380,-722.62013483,0.00016086,2]
[408368577,1773507033390,-722.62013483,0.00016086,2]
[408368578,1773507033401,-726.49258796,0.00016086,2]
[408368579,1773507033410,-726.49258796,0.00016086,2]
[408368580,1773507033420,-726.49258796,0.00016086,2]
[408368581,1773507033430,-726.49258796,0.00016086,2]
[408368582,1773507033440,-726.49258796,0.00016086,2]
[408368583,1773507033450,-726.49258796,0.00016086,2]
[408368584,1773507033460,-726.49258796,0.00016086,2]
[408368585,1773507033471,-726.49258796,0.00016086,2]
[408368586,1773507033481,-726.49258796,0.00016086,2]
[408368587,1773507033491,-726.49258796,0.00016086,2]
[408368588,1773507033501,-726.49258796,0.00016086,2]
[408368589,1773507033510,-726.49258796,0.00016086,2]
[408368590,1773507033521,-726.49258796,0.00016086,2]
[408368591,1773507033531,-726.49258796,0.00016086,2]
[408368592,1773507033541,-726.49258796,0.00016086,2]
[408368593,1773507033550,-726.49258796,0.00016086,2]
[408368594,1773507033561,-726.49258796,0.00016086,2]
[408368595,1773507033571,-726.49258796,0.00016086,2]
[408368596,1773507033584,-726.49258796,0.00016086,2]
[408368597,1773507033594,-726.49258796,0.00016086,2]
[408368598,1773507033604,-726.49258796,0.00016086,2]
[408368599,1773507033613,-726.49258796,0.00016086,2]
[408368600,1773507033623,-726.49258796,0.00016086,2]
[408368601,1773507033633,-726.49258796,0.00016086,2]
[408368602,1773507033643,-726.49258796,0.00016086,2]
[408368603,1773507033653,-726.49258796,0.00016086,2]
[408368604,1773507033663,-1565.28631642,0.00016086,2]
[408368605,1773507033673,-249.6296556,0.00016086,2]
[408368606,1773507033683,-166.77759726,0.00016086,2]
[408368607,1773507033692,-500.0,0.00016086,2]
[408368608,1773507033702,-500.0,0.00016086,2]
[408368609,1773507033712,-630.86334036,0.00016086,2]
[408368610,1773507033722,-438.62151035,0.00016086,2]
[408368611,1773507033732,-500.0,0.00016086,2]
[408368612,1773507033742,-500.0,0.00016086,2]
[408368613,1773507033751,-500.0,0.00016086,2]
[408368614,1773507033760,-500.0,0.00016086,2]
[408368615,1773507033770,-5485.07348889,0.00016087,2]
[408368616,1773507033786,-13083.25838047,0.00016087,2]
[408368617,1773507033799,-793.29285291,0.00016087,2]
[408368618,1773507033810,-367.55852767,0.00016087,2]
[408368619,1773507033827,-5892.8,0.00016087,2]
[408368620,1773507033843,-355.00000001,0.00016087,2]
[408368623,1773507037973,-500.0,0.00016086,2]
[408368624,1773507037983,-500.0,0.00016086,2]
[408368625,1773507037993,-5187.95,0.00016087,2]
[408368626,1773507038007,-324.27,0.00016087,2]
[408368627,1773507038018,-568.4,0.00016087,2]
[408368628,1773507038029,-73502.37867676,0.00016087,2]
[408368629,1773507038081,-10819.8295686,0.00016087,2]
[408368657,1773507040143,-500.0,0.00016087,2]
[408368658,1773507040155,-716.49020845,0.00016087,2]
[408368659,1773507040353,-417485.89429624,0.00016087,2]
[408368660,1773507040363,-500.0,0.00016099,2]
[408368661,1773507040373,-500.0,0.00016099,2]
[408368662,1773507040383,-500.0,0.00016099,2]
[408368663,1773507040393,-500.0,0.00016099,2]
[408368664,1773507040404,-166.66,0.00016101,2]
[408368665,1773507040415,-167.89,0.00016143,2]
[408368666,1773507040426,-167.89,0.00016143,2]
[408368667,1773507040436,-167.89,0.00016143,2]
[408368668,1773507040447,-151.0,0.00016179,2]
[408368669,1773507040456,-151.0,0.00016179,2]
[408368670,1773507040468,-151.0,0.00016179,2]
[408368671,1773507040478,-151.0,0.00016179,2]
[408368672,1773507040487,-151.0,0.00016179,2]
[408368673,1773507040498,-500.0,0.00016179,2]
[408368674,1773507040509,-151.0,0.00016179,2]
[408368675,1773507040519,-500.0,0.00016179,2]
[408368676,1773507040529,-151.0,0.00016179,2]
[408368677,1773507040540,-500.0,0.00016179,2]
[408368678,1773507040550,-151.0,0.00016179,2]
[408368679,1773507040559,-500.0,0.00016179,2]
[408368680,1773507040570,-500.0,0.00016179,2]
[408368681,1773507040581,-500.0,0.00016179,2]
[408368682,1773507040592,-500.0,0.00016179,2]
[408368683,1773507040603,-500.0,0.00016179,2]
[408368684,1773507040612,-500.0,0.00016179,2]
[408368686,1773507040622,-500.0,0.00016179,2]
[408368687,1773507040632,-500.0,0.00016179,2]
[408368688,1773507040642,-500.0,0.00016179,2]
[408368689,1773507040653,-500.0,0.00016179,2]
[408368690,1773507040663,-500.0,0.00016179,2]
[408368691,1773507040673,-500.0,0.00016179,2]
[408368692,1773507040683,-500.0,0.00016179,2]
[408368693,1773507040694,-500.0,0.00016187,2]
[408368694,1773507040704,-500.0,0.00016187,2]
[408368695,1773507040714,-500.0,0.00016187,2]
[408368696,1773507040724,-500.0,0.00016187,2]
[408368697,1773507040734,-500.0,0.00016187,2]
[408368698,1773507040743,-500.0,0.00016187,2]
[408368699,1773507040753,-500.0,0.00016187,2]
[408368700,1773507040762,-318.69238869,0.00016187,2]
[408368701,1773507040772,-500.0,0.00016187,2]
[408368702,1773507040783,-500.0,0.00016187,2]
[408368703,1773507040793,-500.0,0.00016199,2]
[408368704,1773507040802,-500.0,0.00016199,2]
[408368705,1773507040812,-500.0,0.00016199,2]
[408368706,1773507040822,-500.0,0.00016199,2]
[408368707,1773507040831,-500.0,0.00016199,2]
[408368708,1773507040841,-500.0,0.00016199,2]
[408368709,1773507040851,-600.0,0.00016336,2]
[408368710,1773507040861,-250.0,0.00016336,2]
[408368711,1773507040882,-600.0,0.00016336,2]
[408368712,1773507040892,-298.82278026,0.00016336,2]
[408368713,1773507040902,-5000.0,0.00016336,2]
[408368714,1773507040914,-300.0,0.00016336,2]
[408368715,1773507040924,-3220.54051619,0.00016337,2]
[408368716,1773507040934,-166.66,0.00016414,2]
[408368717,1773507040945,-6205.28563472,0.00016432,2]
[408368718,1773507040955,-13359.16829628,0.00016432,2]
[408368719,1773507040964,-500.0,0.00016438,2]
[408368720,1773507040974,-500.0,0.00016438,2]
[408368721,1773507040985,-1000.0,0.00016438,2]
[408368722,1773507040995,-7202.03514188,0.00016458,2]
[408368723,1773507041005,-604.02,0.00016493,2]
[408368724,1773507041014,-166.66,0.00016531,2]
[408368725,1773507041024,-420.0,0.00016562,2]
[408368726,1773507041034,-301.01377224,0.000166,2]
[408368727,1773507041044,-1000.0,0.000166,6]
[408368728,1773507041054,-1680.0,0.00016646,2]
[408368729,1773507041064,-500.0,0.00016687,2]
[408368730,1773507041074,-500.0,0.00016687,2]
[408368731,1773507041084,-159.5718,0.00016688,2]
[408368732,1773507041095,-27560.5887,0.00016688,2]
[408368733,1773507041104,-500.0,0.00016694,2]
[408368734,1773507041115,-214.55915344,0.00016694,2]
[408368735,1773507041125,-470.0,0.00016694,2]
[408368736,1773507041137,-500.0,0.00016694,2]
[408368737,1773507041147,-150.0,0.00016694,2]
[408368738,1773507041157,-500.0,0.00016694,2]
[408368739,1773507041168,-177.858215,0.00016694,2]
[408368740,1773507041177,-177.858215,0.00016694,2]
[408368741,1773507041188,-177.858215,0.00016694,2]
[408368742,1773507041198,-177.858215,0.00016694,2]
[408368743,1773507041208,-549.0,0.00016694,2]
[408368744,1773507041217,-151.0,0.00016694,2]
[408368745,1773507041227,-151.0,0.00016694,2]
[408368746,1773507041239,-157.658552,0.00016694,2]
[408368747,1773507041249,-151.0,0.00016694,2]
[408368748,1773507041260,-151.0,0.00016694,2]
[408368749,1773507041269,-151.0,0.00016694,2]
[408368750,1773507041279,-151.0,0.00016694,2]
[408368751,1773507041288,-2000.0,0.000167,6]
[408368752,1773507041298,-813.0,0.000167,2]
[408368753,1773507041307,-1521.58005521,0.000167,2]
[408368754,1773507041317,-913.98633295,0.00016704,2]
[408368755,1773507041327,-1000.0,0.00016712,2]
[408368756,1773507041336,-500.0,0.00016749,2]
[408368757,1773507041346,-470.0,0.00016749,2]
[408368758,1773507041356,-500.0,0.00016749,2]
[408368759,1773507041366,-177.2019684,0.00016749,2]
[408368760,1773507041375,-500.0,0.00016749,2]
[408368761,1773507041385,-549.0,0.00016749,2]
[408368762,1773507041395,-500.66398075,0.00016773,2]
[408368763,1773507041405,-500.39228547,0.00016773,2]
[408368764,1773507041415,-500.0,0.00016773,2]
[408368765,1773507041426,-492.69437203,0.00016773,2]
[408368766,1773507041436,-209.0122824,0.00016779,2]
[408368767,1773507041447,-200.0,0.00016785,2]
[408368768,1773507041456,-163.35203099,0.00016785,2]
[408368769,1773507041623,-500.0,0.00016785,2]
[408368770,1773507041634,-1102.26574296,0.00016786,2]
[408368771,1773507041645,-500.0,0.00016788,2]
[408368772,1773507041655,-500.0,0.00016788,2]
[408368773,1773507041666,-308.46140861,0.00016788,2]
[408368774,1773507041676,-500.0,0.00016788,2]
[408368775,1773507041686,-574.55,0.00016788,2]
[408368776,1773507041695,-583.48,0.00016788,2]
[408368777,1773507041714,-500.0,0.00016788,2]
[408368778,1773507041727,-523.37568482,0.00016788,2]
[408368779,1773507041737,-500.0,0.00016788,2]
[408368780,1773507041748,-500.0,0.00016788,2]
[408368781,1773507041758,-500.0,0.00016788,2]
[408368782,1773507041769,-500.0,0.00016788,2]
[408368783,1773507041779,-500.0,0.00016788,2]
[408368784,1773507041790,-275.52800609,0.00016788,2]
[408368785,1773507041800,-300.0,0.00016788,2]
[408368786,1773507041811,-300.0,0.00016788,2]
[408368787,1773507041823,-975.0,0.00016789,5]
[408368788,1773507041834,-151.0,0.00016789,2]
[408368789,1773507041846,-151.0,0.00016789,2]
[408368790,1773507041857,-151.0,0.00016789,2]
[408368791,1773507041872,-151.0,0.00016789,2]
[408368792,1773507041881,-151.0,0.00016789,2]
[408368793,1773507041893,-177.858215,0.00016789,2]
[408368794,1773507041905,-177.858215,0.00016789,2]
[408368795,1773507041917,-177.858215,0.00016789,2]
[408368796,1773507041927,-177.858215,0.00016789,2]
[408368797,1773507041938,-151.0,0.00016789,2]
[408368798,1773507041950,-151.0,0.00016789,2]
[408368799,1773507041960,-151.0,0.00016789,2]
[408368800,1773507041970,-151.0,0.00016789,2]
[408368801,1773507041981,-254.11726,0.00016789,2]
[408368802,1773507041990,-787995.35948538,0.00016789,2]
[408368807,1773507043063,-2484.80542572,0.00016789,2]
[408368808,1773507043198,-114.72943123,0.00016789,2]
[408368814,1773507045833,-3619.66156482,0.00016789,2]
[408368815,1773507045845,-327.20888099,0.00016789,2]
[408368820,1773507179525,1129.72,0.00013134,2]
[408368821,1773507191515,2709.0,0.000121,5]
[408368822,1773507222583,2824.0,0.000121,5]
[408368825,1773507304555,174.53,7.879e-05,2]
[408368826,1773507304922,174.53,8.294e-05,2]
[408368827,1773507304958,174.53,8.708e-05,2]
[408368828,1773507305341,174.53,9.123e-05,2]
[408368829,1773507305553,174.53,9.538e-05,2]
[408368830,1773507305778,174.53,9.952e-05,2]
[408368831,1773507305987,174.53,0.00010367,2]
[408368832,1773507306206,174.53,0.00010782,2]
[408368833,1773507306405,174.53,0.00011196,2]
[408368834,1773507306618,174.53,0.00011611,2]
[408368835,1773507306839,174.53,0.00012026,2]
[408368836,1773507307044,174.53,0.0001244,2]
[408368837,1773507307253,174.53,0.00012855,2]
[408368838,1773507307667,174.53,0.0001327,2]
[408368839,1773507307887,174.53,0.00013684,2]
[408368841,1773507313409,719.34,0.00013984,2]
[408368842,1773507313433,126.68,0.00013984,2]
[408368849,1773507567966,1033.2916579,0.000108,2]
[408368851,1773507595172,1145.52724198,0.0001199,2]
[408368856,1773507730800,1000.0,0.000135,2]
[408368857,1773507749604,1970.29540818,0.0001,2]
[408368858,1773507758800,4724.21569194,9.5e-05,3]
[408368859,1773507758823,5919.77180179,9.5e-05,3]
[408368878,1773508232009,-266.0,0.00014099,2]
[408368879,1773508232020,-300.0,0.00014099,2]
[408368880,1773508232031,-169.89640059,0.00014099,2]
[408368881,1773508232044,-80.10359941,0.00014099,2]
[408368882,1773508232055,-174.53,0.00014099,2]
[408368883,1773508232068,-174.53,0.00014514,2]
[408368884,1773508232081,-517.32000089,0.00014755,2]
[408368885,1773508232094,-469.573221,0.00014755,2]
[408368886,1773508232106,-318.75595281,0.00014755,2]
[408368887,1773508232118,-1934.3508253,0.00014755,2]
[408368888,1773508232128,-805.65169039,0.00014774,2]
[408368889,1773508232149,-95.03830961,0.00014774,2]
[408368890,1773508232160,-200.0,0.00014801,2]
[408368892,1773508232173,-174.53,0.00014928,2]
[408368893,1773508232184,-1200.0,0.00014964,2]
[408368894,1773508232195,-2000.0,0.00014965,2]
[408368895,1773508232205,-250.0,0.00015,2]
[408368896,1773508232217,-900.69,0.00015143,2]
[408368898,1773508232227,-300.0,0.00015171,2]
[408368900,1773508232238,-1465.38,0.00015172,2]
[408368902,1773508232249,-300.0,0.00015259,2]
[408368904,1773508232260,-4314.79,0.00015262,2]
[408368906,1773508232270,-9234.85,0.00015262,2]
[408368908,1773508232281,-174.53,0.00015343,2]
[408368911,1773508232292,-161.0,0.00015351,2]
[408368913,1773508232302,-1163.34,0.0001544,2]
[408368916,1773508232313,-250.0,0.00015482,2]
[408368919,1773508232324,-230.76,0.00015491,2]
[408368920,1773508232335,-250.0,0.00015509,2]
[408368921,1773508232346,-300.0,0.00015509,2]
[408368922,1773508232359,-250.0,0.00015509,2]
[408368923,1773508232370,-4259.186085,0.00015509,2]
[408368924,1773508232381,-900.69,0.00015513,2]
[408368925,1773508232392,-500.0,0.00015699,2]
[408368926,1773508232403,-800.0,0.000157,5]
[408368927,1773508232414,-174.53,0.00015758,2]
[408368928,1773508232425,-1700.0,0.000158,5]
[408368929,1773508232436,-200.0,0.00015874,2]
[408368930,1773508232447,-300.0,0.00015874,2]
[408368931,1773508232459,-900.69,0.00015882,2]
[408368932,1773508232470,-11079.69280723,0.00015885,2]
[408368933,1773508232480,-504.2091639,0.00015885,2]
[408368934,1773508232491,-1000.0,0.00015886,2]
[408368935,1773508232500,-2500.0,0.00015886,2]
[408368936,1773508232512,-806.90854236,0.00015887,2]
[408368937,1773508232521,-4964.22850783,0.00015887,2]
[408368938,1773508232531,-1448.19430319,0.00015887,2]
[408368939,1773508232541,-1298.18465583,0.00015887,2]
[408368940,1773508232556,-786.98,0.00015891,2]
[408368941,1773508232567,-2600.0,0.000159,5]
[408368942,1773508232578,-1465.38,0.00015931,2]
[408368943,1773508232589,-209.17565074,0.00015976,2]
[408368944,1773508232600,-500.0,0.00015985,2]
[408368945,1773508232611,-500.0,0.00015985,2]